fUST/lending_fUST_20251004
["ID","MTS","AMOUNT","RATE_DAILY","PERIOD"]
[389144369,1759590673024,-500.0,0.00020547,2]
[389144370,1759590673034,-500.0,0.00020547,2]
[389144371,1759590673043,-500.0,0.00020547,2]
[389144372,1759590673053,-1601.94,0.00020547,2]
[389144373,1759590673062,-500.0,0.00020547,2]
[389144374,1759590673072,-500.0,0.00020547,2]
[389144375,1759590673082,-706.43,0.00020547,2]
[389144376,1759590673091,-500.0,0.00020547,2]
[389144377,1759590673101,-529.06,0.00020547,2]
[389144378,1759590673111,-500.0,0.00020547,2]
[389144379,1759590673121,-748.01,0.00020547,2]
[389144380,1759590673131,-335.81389104,0.00020547,2]
[389144381,1759590673141,-500.0,0.00020547,2]
[389144382,1759590673151,-805.25,0.00020547,2]
[389144383,1759590673161,-877.35,0.00020547,2]
[389144384,1759590673171,-422.99749966,0.00020547,2]
[389144385,1759590673181,-810.89,0.00020547,2]
[389144386,1759590673191,-840.23,0.00020547,2]
[389144387,1759590673201,-368.50000764,0.00020547,2]
[389144388,1759590673211,-151.0,0.00020547,2]
[389144389,1759590673221,-151.0,0.00020547,2]
[389144390,1759590673231,-196.46238675,0.00020547,2]
[389144391,1759590673240,-151.0,0.00020547,2]
[389144392,1759590673250,-500.0,0.00020547,2]
[389144393,1759590673261,-500.0,0.00020547,2]
[389144394,1759590673271,-500.0,0.00020547,2]
[389144395,1759590673280,-842.15,0.00020547,2]
[389144396,1759590673291,-2848.24,0.00020547,2]
[389144397,1759590673301,-966.97,0.00020547,2]
[389144398,1759590673311,-500.0,0.00020547,2]
[389144399,1759590673321,-1140.91,0.00020547,2]
[389144400,1759590673331,-500.0,0.00020547,2]
[389144401,1759590673340,-1360.8,0.00020547,2]
[389144402,1759590673350,-609.28,0.00020547,2]
[389144403,1759590673360,-500.0,0.00020547,2]
[389144404,1759590673370,-500.0,0.00020547,2]
[389144405,1759590673380,-500.0,0.00020547,2]
[389144406,1759590673390,-188.171782,0.00020547,2]
[389144407,1759590673400,-500.0,0.00020547,2]
[389144408,1759590673409,-188.171782,0.00020547,2]
[389144409,1759590673419,-500.0,0.00020547,2]
[389144410,1759590673429,-188.171782,0.00020547,2]
[389144411,1759590673438,-188.171782,0.00020547,2]
[389144412,1759590673448,-500.0,0.00020547,2]
[389144413,1759590673458,-645.8,0.00020547,2]
[389144414,1759590673467,-500.0,0.00020547,2]
[389144415,1759590673478,-223.853656,0.00020547,2]
[389144416,1759590673487,-151.0,0.00020547,2]
[389144417,1759590673497,-165.579866,0.00020547,2]
[389144418,1759590673507,-151.0,0.00020547,2]
[389144419,1759590673517,-165.579866,0.00020547,2]
[389144420,1759590673527,-977.77,0.00020547,2]
[389144421,1759590673536,-151.0,0.00020547,2]
[389144422,1759590673546,-958.93,0.00020547,2]
[389144423,1759590673557,-165.579866,0.00020547,2]
[389144424,1759590673567,-151.0,0.00020547,2]
[389144425,1759590673578,-165.579866,0.00020547,2]
[389144426,1759590673588,-500.0,0.00020547,2]
[389144427,1759590673599,-151.0,0.00020547,2]
[389144428,1759590673611,-500.0,0.00020547,2]
[389144429,1759590673622,-1323.11,0.00020547,2]
[389144430,1759590673740,-500.0,0.00020547,2]
[389144431,1759590673751,-500.0,0.00020547,2]
[389144432,1759590673761,-500.0,0.00020547,2]
[389144433,1759590673771,-500.0,0.00020547,2]
[389144434,1759590673781,-1856.22,0.00020547,2]
[389144435,1759590673791,-1749.05,0.00020547,2]
[389144436,1759590673801,-768.13,0.00020547,2]
[389144437,1759590673811,-500.0,0.00020547,2]
[389144438,1759590673821,-170.871397,0.00020547,2]
[389144439,1759590673830,-170.871397,0.00020547,2]
[389144440,1759590673840,-170.871397,0.00020547,2]
[389144441,1759590673849,-170.871397,0.00020547,2]
[389144442,1759590673859,-500.0,0.00020547,2]
[389144443,1759590673868,-151.0,0.00020547,2]
[389144444,1759590673879,-500.0,0.00020547,2]
[389144445,1759590673891,-151.0,0.00020547,2]
[389144446,1759590673902,-251.795406,0.00020547,2]
[389144447,1759590673911,-732.2,0.00020547,2]
[389144448,1759590673922,-1738.11,0.00020547,2]
[389144449,1759590673932,-151.0,0.00020547,2]
[389144450,1759590673943,-500.0,0.00020547,2]
[389144451,1759590673953,-178.114406,0.00020547,2]
[389144452,1759590673963,-500.0,0.00020547,2]
[389144453,1759590673973,-500.0,0.00020547,2]
[389144454,1759590673982,-3015.62,0.00020547,2]
[389144455,1759590673992,-1097.18,0.00020547,2]
[389144456,1759590674003,-1095.04,0.00020547,2]
[389144457,1759590674013,-500.0,0.00020547,2]
[389144458,1759590674022,-3353.07,0.00020547,2]
[389144459,1759590674032,-500.0,0.00020547,2]
[389144460,1759590674042,-500.0,0.00020547,2]
[389144461,1759590674051,-500.0,0.00020547,2]
[389144462,1759590674061,-500.0,0.00020547,2]
[389144463,1759590674071,-979.87,0.00020547,2]
[389144464,1759590674080,-500.0,0.00020547,2]
[389144465,1759590674090,-500.0,0.00020547,2]
[389144466,1759590674100,-556.58,0.00020547,2]
[389144467,1759590674109,-602.05,0.00020547,2]
[389144468,1759590674119,-669.17,0.00020547,2]
[389144469,1759590674130,-2444.68,0.00020547,2]
[389144470,1759590674142,-700.63,0.00020547,2]
[389144471,1759590674152,-500.0,0.00020547,2]
[389144472,1759590674162,-1487.34,0.00020547,2]
[389144473,1759590674172,-501.72,0.00020547,2]
[389144474,1759590674182,-809.98,0.00020547,2]
[389144475,1759590674192,-3003.58,0.00020547,2]
[389144476,1759590674201,-4041.89,0.00020547,2]
[389144477,1759590674211,-500.0,0.00020547,2]
[389144478,1759590674220,-500.0,0.00020547,2]
[389144479,1759590674229,-500.0,0.00020547,2]
[389144480,1759590674239,-151.0,0.00020547,2]
[389144481,1759590674249,-500.0,0.00020547,2]
[389144482,1759590674259,-1598.11,0.00020547,2]
[389144483,1759590674270,-151.0,0.00020547,2]
[389144484,1759590674281,-151.0,0.00020547,2]
[389144485,1759590674291,-500.0,0.00020547,2]
[389144486,1759590674300,-151.0,0.00020547,2]
[389144487,1759590674310,-151.0,0.00020547,2]
[389144488,1759590674320,-1068.6,0.00020547,2]
[389144489,1759590674330,-542.75,0.00020547,2]
[389144490,1759590674339,-151.0,0.00020547,2]
[389144491,1759590674349,-151.0,0.00020547,2]
[389144492,1759590674361,-588.7,0.00020547,2]
[389144493,1759590674370,-500.0,0.00020547,2]
[389144494,1759590674380,-500.0,0.00020547,2]
[389144495,1759590674392,-2368.12,0.00020547,2]
[389144496,1759590674402,-548.65,0.00020547,2]
[389144497,1759590674412,-1054.69,0.00020547,2]
[389144498,1759590674422,-500.0,0.00020547,2]
[389144499,1759590674433,-1050.17,0.00020547,2]
[389144500,1759590674443,-238.190311,0.00020547,2]
[389144501,1759590674453,-238.190311,0.00020547,2]
[389144502,1759590674463,-786.24,0.00020547,2]
[389144503,1759590674473,-232.342074,0.00020547,2]
[389144504,1759590674483,-238.190311,0.00020547,2]
[389144505,1759590674493,-1829.47,0.00020547,2]
[389144506,1759590674502,-232.342074,0.00020547,2]
[389144507,1759590674512,-791.1,0.00020547,2]
[389144508,1759590674522,-238.190314,0.00020547,2]
[389144509,1759590674532,-232.342074,0.00020547,2]
[389144510,1759590674542,-500.0,0.00020547,2]
[389144511,1759590674552,-232.342078,0.00020547,2]
[389144512,1759590674564,-647.62,0.00020547,2]
[389144513,1759590674574,-500.0,0.00020547,2]
[389144514,1759590674594,-500.0,0.00020547,2]
[389144515,1759590674611,-500.0,0.00020547,2]
[389144516,1759590674632,-155.045436,0.00020547,2]
[389144517,1759590674651,-1868.16,0.00020547,2]
[389144518,1759590674673,-947.44,0.00020547,2]
[389144519,1759590674689,-1195.72,0.00020547,2]
[389144520,1759590674708,-3023.99,0.00020547,2]
[389144521,1759590674723,-594.18,0.00020547,2]
[389144522,1759590674739,-1450.46,0.00020547,2]
[389144523,1759590674757,-551.71955659,0.00020547,2]
[389144524,1759590674780,-500.0,0.00020547,2]
[389144525,1759590674793,-500.0,0.00020547,2]
[389144526,1759590674811,-500.0,0.00020547,2]
[389144527,1759590674827,-500.0,0.00020547,2]
[389144528,1759590674844,-1341.41,0.00020547,2]
[389144529,1759590674857,-503.24,0.00020547,2]
[389144530,1759590674874,-2415.19,0.00020547,2]
[389144531,1759590674891,-4325.59,0.00020547,2]
[389144532,1759590674906,-367.61138401,0.00020547,2]
[389144533,1759590674921,-2117.6,0.00020547,2]
[389144534,1759590674935,-151.0,0.00020547,2]
[389144535,1759590674950,-616.75,0.00020547,2]
[389144536,1759590674965,-500.0,0.00020547,2]
[389144537,1759590674981,-894.18,0.00020547,2]
[389144538,1759590674995,-626.258136,0.00020547,2]
[389144539,1759590675010,-626.258136,0.00020547,2]
[389144540,1759590675024,-626.258136,0.00020547,2]
[389144541,1759590675039,-626.258145,0.00020547,2]
[389144542,1759590675053,-646.89,0.00020547,2]
[389144543,1759590675067,-6808.25,0.00020547,2]
[389144544,1759590675082,-288.49280113,0.00020547,2]
[389144545,1759590675095,-276.382728,0.00020547,2]
[389144546,1759590675110,-1219.82,0.00020547,2]
[389144547,1759590675127,-151.0,0.00020547,2]
[389144548,1759590675143,-276.382728,0.00020547,2]
[389144549,1759590675157,-9676.674595,0.00020547,2]
[389144551,1759590675172,-766.0,0.00020547,2]
[389144552,1759590675187,-576.19,0.00020547,2]
[389144554,1759590675201,-276.382728,0.00020547,2]
[389144555,1759590675216,-9676.674595,0.00020547,2]
[389144556,1759590675230,-151.0,0.00020547,2]
[389144557,1759590675244,-151.0,0.00020547,2]
[389144558,1759590675260,-276.38273,0.00020547,2]
[389144559,1759590675275,-501.11,0.00020547,2]
[389144560,1759590675289,-9676.674595,0.00020547,2]
[389144561,1759590675304,-500.0,0.00020547,2]
[389144562,1759590675318,-151.0,0.00020547,2]
[389144563,1759590675333,-308.588538,0.00020547,2]
[389144564,1759590675348,-9676.674588,0.00020547,2]
[389144565,1759590675362,-270.705993,0.00020547,2]
[389144566,1759590675376,-838.57,0.00020547,2]
[389144567,1759590675392,-308.588538,0.00020547,2]
[389144568,1759590675406,-500.0,0.00020547,2]
[389144569,1759590675421,-308.588538,0.00020547,2]
[389144570,1759590675436,-1612.24,0.00020547,2]
[389144571,1759590675450,-500.0,0.00020547,2]
[389144572,1759590675467,-308.588543,0.00020547,2]
[389144573,1759590675483,-500.0,0.00020547,2]
[389144574,1759590675514,-223.459985,0.00020547,2]
[389144575,1759590675541,-151.0,0.00020547,2]
[389144576,1759590675563,-223.459985,0.00020547,2]
[389144577,1759590675584,-151.0,0.00020547,2]
[389144578,1759590675603,-223.459985,0.00020547,2]
[389144579,1759590675624,-151.0,0.00020547,2]
[389144580,1759590675642,-223.459993,0.00020547,2]
[389144581,1759590675659,-500.0,0.00020547,2]
[389144582,1759590675676,-1409.27,0.00020547,2]
[389144583,1759590675693,-151.0,0.00020547,2]
[389144584,1759590675709,-990.0,0.00020547,2]
[389144585,1759590675725,-500.0,0.00020547,2]
[389144586,1759590675741,-923.15,0.00020547,2]
[389144587,1759590675757,-1345.42,0.00020547,2]
[389144588,1759590675772,-1493.73,0.00020547,2]
[389144589,1759590675788,-151.0,0.00020547,2]
[389144590,1759590675804,-267.37020531,0.00020547,2]
[389144591,1759590675820,-500.0,0.00020547,2]
[389144592,1759590675834,-151.0,0.00020547,2]
[389144593,1759590675850,-542.59,0.00020547,2]
[389144594,1759590675866,-763.547667,0.00020547,2]
[389144595,1759590675883,-1082.9,0.00020547,2]
[389144596,1759590675899,-763.547667,0.00020547,2]
[389144597,1759590675915,-1072.6,0.00020547,2]
[389144598,1759590676120,-1043.25,0.00020547,2]
[389144599,1759590676133,-763.547667,0.00020547,2]
[389144600,1759590676143,-500.0,0.00020547,2]
[389144601,1759590676152,-1131.17,0.00020547,2]
[389144602,1759590676162,-763.547669,0.00020547,2]
[389144603,1759590676172,-2361.16,0.00020547,2]
[389144604,1759590676182,-500.0,0.00020547,2]
[389144605,1759590676191,-5225.58,0.00020547,2]
[389144606,1759590676200,-500.0,0.00020547,2]
[389144607,1759590676209,-985.70328,0.00020547,2]
[389144608,1759590676219,-151.0,0.00020547,2]
[389144609,1759590676229,-985.70328,0.00020547,2]
[389144610,1759590676239,-472.52244,0.00020547,2]
[389144611,1759590676248,-151.0,0.00020547,2]
[389144612,1759590676258,-985.70328,0.00020547,2]
[389144613,1759590676267,-472.52244,0.00020547,2]
[389144614,1759590676277,-151.0,0.00020547,2]
[389144615,1759590676286,-151.0,0.00020547,2]
[389144616,1759590676295,-500.0,0.00020547,2]
[389144617,1759590676305,-985.70328,0.00020547,2]
[389144618,1759590676314,-472.52244,0.00020547,2]
[389144619,1759590676324,-151.0,0.00020547,2]
[389144620,1759590676333,-151.0,0.00020547,2]
[389144621,1759590676343,-472.522434,0.00020547,2]
[389144622,1759590676352,-414.143484,0.00020547,2]
[389144623,1759590676361,-1448.44,0.00020547,2]
[389144624,1759590676370,-511.73,0.00020547,2]
[389144625,1759590676380,-414.143484,0.00020547,2]
[389144626,1759590676389,-632.45,0.00020547,2]
[389144627,1759590676399,-500.0,0.00020547,2]
[389144628,1759590676408,-606.37,0.00020547,2]
[389144629,1759590676417,-414.143484,0.00020547,2]
[389144630,1759590676426,-414.143478,0.00020547,2]
[389144631,1759590676435,-500.0,0.00020547,2]
[389144632,1759590676445,-1452.17,0.00020547,2]
[389144633,1759590676454,-647.03,0.00020547,2]
[389144634,1759590676463,-151.0,0.00020547,2]
[389144635,1759590676473,-1921.468988,0.00020547,2]
[389144636,1759590676483,-151.0,0.00020547,2]
[389144637,1759590676493,-326.305215,0.00020547,2]
[389144638,1759590676503,-500.0,0.00020547,2]
[389144639,1759590676513,-1921.468988,0.00020547,2]
[389144640,1759590676522,-6915.55,0.00020547,2]
[389144641,1759590676532,-151.0,0.00020547,2]
[389144642,1759590676541,-326.305215,0.00020547,2]
[389144643,1759590676550,-500.0,0.00020547,2]
[389144644,1759590676559,-1921.468988,0.00020547,2]
[389144645,1759590676568,-326.305215,0.00020547,2]
[389144646,1759590676578,-1921.468995,0.00020547,2]
[389144647,1759590676587,-550.847156,0.00020547,2]
[389144648,1759590676597,-500.0,0.00020547,2]
[389144649,1759590676606,-326.305224,0.00020547,2]
[389144650,1759590676616,-550.847156,0.00020547,2]
[389144651,1759590676626,-2266.98,0.00020547,2]
[389144652,1759590676636,-3328.29,0.00020547,2]
[389144653,1759590676647,-500.0,0.00020547,2]
[389144654,1759590676656,-550.847156,0.00020547,2]
[389144655,1759590676665,-550.84715,0.00020547,2]
[389144656,1759590676675,-156.87135269,0.00020547,2]
[389144657,1759590676684,-1023.24,0.00020547,2]
[389144658,1759590676693,-500.0,0.00020547,2]
[389144659,1759590676702,-1262.25,0.00020547,2]
[389144660,1759590676712,-333.6448354,0.00020547,2]
[389144661,1759590676721,-6120.99,0.00020547,2]
[389144662,1759590676731,-3854.46,0.00020547,2]
[389144663,1759590676741,-632.01,0.00020547,2]
[389144664,1759590676750,-1243.803981,0.00020547,2]
[389144665,1759590676760,-500.0,0.00020547,2]
[389144666,1759590676769,-500.0,0.00020547,2]
[389144667,1759590676778,-1243.803981,0.00020547,2]
[389144668,1759590676789,-500.0,0.00020547,2]
[389144669,1759590676798,-500.0,0.00020547,2]
[389144670,1759590676807,-1243.803981,0.00020547,2]
[389144671,1759590676816,-151.0,0.00020547,2]
[389144672,1759590676826,-1243.803973,0.00020547,2]
[389144673,1759590676835,-500.0,0.00020547,2]
[389144674,1759590676844,-1031.38,0.00020547,2]
[389144675,1759590676854,-1428.16,0.00020547,2]
[389144676,1759590676863,-1606.82,0.00020547,2]
[389144677,1759590676872,-826.478215,0.00020547,2]
[389144678,1759590676881,-151.0,0.00020547,2]
[389144679,1759590676891,-500.0,0.00020547,2]
[389144680,1759590676901,-826.478215,0.00020547,2]
[389144681,1759590676910,-917.5,0.00020547,2]
[389144682,1759590676920,-551.75,0.00020547,2]
[389144683,1759590676930,-4600.4,0.00020547,2]
[389144684,1759590676939,-821.33,0.00020547,2]
[389144685,1759590676948,-151.0,0.00020547,2]
[389144686,1759590676958,-422.9889412,0.00020547,2]
[389144687,1759590676967,-826.478215,0.00020547,2]
[389144688,1759590676976,-297.44930206,0.00020548,2]
[389144689,1759590676985,-500.0,0.00020548,2]
[389144690,1759590676995,-580.62285056,0.00020548,2]
[389144691,1759590677004,-151.0,0.00020548,2]
[389144692,1759590677014,-500.0,0.00020548,2]
[389144693,1759590677023,-500.0,0.00020548,2]
[389144694,1759590677033,-500.0,0.00020548,2]
[389144695,1759590677042,-151.0,0.00020548,2]
[389144696,1759590677051,-151.0,0.00020548,2]
[389144697,1759590677061,-151.0,0.00020548,2]
[389144698,1759590677070,-500.0,0.00020548,2]
[389144699,1759590677079,-151.0,0.00020548,2]
[389144700,1759590677089,-151.0,0.00020548,2]
[389144701,1759590677098,-500.0,0.00020548,2]
[389144702,1759590677108,-500.0,0.00020548,2]
[389144703,1759590677118,-500.0,0.00020548,2]
[389144704,1759590677127,-500.0,0.00020548,2]
[389144705,1759590677137,-151.0,0.00020548,2]
[389144706,1759590677146,-500.0,0.00020548,2]
[389144707,1759590677156,-198.59750664,0.00020548,2]
[389144708,1759590677165,-198.59750664,0.00020548,2]
[389144709,1759590677175,-1556.0,0.00020548,2]
[389144710,1759590677184,-1556.0,0.00020548,2]
[389144711,1759590677193,-151.0,0.00020548,2]
[389144712,1759590677202,-500.0,0.00020548,2]
[389144713,1759590677212,-500.0,0.00020548,2]
[389144714,1759590677222,-168.0,0.00020564,2]
[389144715,1759590677232,-360.0,0.00020596,2]
[389144716,1759590677242,-1000.0,0.00020624,2]
[389144717,1759590677252,-1003.27442745,0.00020624,2]
[389144718,1759590677262,-150.0,0.00020625,2]
[389144719,1759590677271,-150.363,0.00020625,2]
[389144720,1759590677281,-201.974,0.00020625,2]
[389144721,1759590677291,-2926.0,0.00020696,2]
[389144722,1759590677300,-811.0,0.00020698,2]
[389144723,1759590677310,-500.0,0.00020723,2]
[389144724,1759590677320,-155.805852,0.00020747,2]
[389144725,1759590677330,-500.0,0.00020755,2]
[389144726,1759590677339,-228.975,0.0002078,2]
[389144727,1759590677348,-250.0,0.0002078,2]
[389144728,1759590677358,-151.36,0.0002078,2]
[389144729,1759590677367,-295.223,0.0002078,2]
[389144730,1759590677377,-998.631,0.0002078,2]
[389144731,1759590677387,-2158.0,0.0002078,2]
[389144732,1759590677397,-635.361,0.0002078,2]
[389144733,1759590677407,-811.0,0.00020801,2]
[389144734,1759590677418,-151.0,0.00020816,2]
[389144735,1759590677428,-151.0,0.00020816,2]
[389144736,1759590677437,-151.0,0.00020816,2]
[389144737,1759590677447,-151.0,0.00020816,2]
[389144738,1759590677457,-151.0,0.00020816,2]
[389144739,1759590677466,-151.0,0.00020816,2]
[389144740,1759590677476,-151.0,0.00020816,2]
[389144741,1759590677486,-151.0,0.00020816,2]
[389144742,1759590677496,-151.0,0.00020816,2]
[389144743,1759590677505,-678.445089,0.00020816,2]
[389144744,1759590677515,-162.352767,0.00020816,2]
[389144745,1759590677524,-678.445089,0.00020816,2]
[389144746,1759590677534,-678.445089,0.00020816,2]
[389144747,1759590677553,-678.445088,0.00020816,2]
[389144748,1759590677566,-478.534729,0.00020816,2]
[389144749,1759590677576,-478.534729,0.00020816,2]
[389144750,1759590677587,-478.534729,0.00020816,2]
[389144751,1759590677598,-478.534724,0.00020816,2]
[389144752,1759590677608,-151.0,0.00020816,2]
[389144753,1759590677618,-151.0,0.00020816,2]
[389144754,1759590677628,-151.0,0.00020816,2]
[389144755,1759590677637,-151.0,0.00020816,2]
[389144756,1759590677647,-151.0,0.00020816,2]
[389144757,1759590677657,-151.0,0.00020816,2]
[389144758,1759590677667,-151.0,0.00020816,2]
[389144759,1759590677677,-151.0,0.00020816,2]
[389144760,1759590677687,-251.601964,0.00020816,2]
[389144761,1759590677697,-251.601964,0.00020816,2]
[389144762,1759590677707,-251.601964,0.00020816,2]
[389144763,1759590677717,-251.601957,0.00020816,2]
[389144764,1759590677727,-163.02676,0.00020816,2]
[389144765,1759590677736,-163.02676,0.00020816,2]
[389144766,1759590677747,-163.02676,0.00020816,2]
[389144767,1759590677758,-163.026762,0.00020816,2]
[389144768,1759590677768,-2000.0,0.00020816,2]
[389144769,1759590677778,-2000.0,0.00020816,2]
[389144770,1759590677788,-2000.0,0.00020816,2]
[389144771,1759590677798,-2000.0,0.00020816,2]
[389144772,1759590677810,-2000.0,0.00020816,2]
[389144773,1759590677820,-1911.3014004,0.00020816,2]
[389144774,1759590677830,-2000.0,0.00020816,2]
[389144775,1759590677840,-2000.0,0.00020816,2]
[389144776,1759590677850,-527.66942394,0.00020816,2]
[389144777,1759590677860,-2000.0,0.00020816,2]
[389144778,1759590677871,-2000.0,0.00020816,2]
[389144779,1759590677884,-2000.0,0.00020816,2]
[389144780,1759590677895,-776.88669335,0.00020816,2]
[389144781,1759590677905,-1500.0,0.00020816,2]
[389144782,1759590677915,-2000.0,0.00020816,2]
[389144783,1759590677925,-2000.0,0.00020816,2]
[389144784,1759590677935,-2000.0,0.00020816,2]
[389144785,1759590677945,-1791.53893252,0.00020816,2]
[389144786,1759590677956,-2000.0,0.00020816,2]
[389144787,1759590677967,-2004.26767412,0.00020816,2]
[389144788,1759590677976,-2000.0,0.00020816,2]
[389144789,1759590677986,-2000.0,0.00020816,2]
[389144790,1759590677996,-1000.0,0.00020821,2]
[389144791,1759590678006,-1000.0,0.00020821,2]
[389144792,1759590678016,-1000.0,0.00020821,2]
[389144793,1759590678027,-1000.0,0.00020821,2]
[389144794,1759590678037,-1000.0,0.00020821,2]
[389144795,1759590678047,-1000.0,0.00020821,2]
[389144796,1759590678058,-1000.0,0.00020821,2]
[389144797,1759590678068,-1000.0,0.00020821,2]
[389144798,1759590678078,-1000.0,0.00020821,2]
[389144799,1759590678088,-1000.0,0.00020821,2]
[389144800,1759590678099,-1000.0,0.00020821,2]
[389144801,1759590678109,-1000.0,0.00020821,2]
[389144802,1759590678119,-1000.0,0.00020821,2]
[389144803,1759590678129,-1099.57751103,0.00020821,2]
[389144804,1759590678143,-1000.0,0.00020821,2]
[389144805,1759590678152,-1000.0,0.00020821,2]
[389144806,1759590678162,-1000.0,0.00020821,2]
[389144807,1759590678176,-1000.0,0.00020821,2]
[389144808,1759590678187,-1000.0,0.00020821,2]
[389144809,1759590678198,-173.2076754,0.00020821,2]
[389144810,1759590678209,-1000.0,0.00020821,2]
[389144811,1759590678219,-1000.0,0.00020821,2]
[389144812,1759590678229,-1000.0,0.00020821,2]
[389144813,1759590678239,-1000.0,0.00020821,2]
[389144814,1759590678250,-500.0,0.00020821,2]
[389144815,1759590678259,-500.0,0.00020821,2]
[389144816,1759590678270,-570.2,0.00020821,2]
[389144817,1759590678280,-500.0,0.00020821,2]
[389144818,1759590678289,-151.0,0.00020821,2]
[389144819,1759590678300,-851.18,0.00020821,2]
[389144820,1759590678310,-151.0,0.00020821,2]
[389144821,1759590678320,-151.0,0.00020821,2]
[389144822,1759590678329,-151.0,0.00020821,2]
[389144823,1759590678339,-151.0,0.00020821,2]
[389144824,1759590678349,-151.0,0.00020821,2]
[389144825,1759590678360,-151.0,0.00020821,2]
[389144826,1759590678370,-500.0,0.00020821,2]
[389144827,1759590678380,-409.12002798,0.00020821,2]
[389144828,1759590678391,-151.0,0.00020821,2]
[389144829,1759590678404,-151.0,0.00020821,2]
[389144830,1759590678414,-705.06,0.00020821,2]
[389144831,1759590678424,-343.75300189,0.00020821,2]
[389144832,1759590678434,-500.0,0.00020821,2]
[389144833,1759590678444,-500.0,0.00020821,2]
[389144834,1759590678453,-500.0,0.00020821,2]
[389144835,1759590678463,-500.0,0.00020821,2]
[389144836,1759590678473,-1245.62,0.00020821,2]
[389144837,1759590678483,-500.0,0.00020821,2]
[389144838,1759590678493,-1777.82,0.00020821,2]
[389144839,1759590678502,-500.0,0.00020821,2]
[389144840,1759590678512,-151.0,0.00020821,2]
[389144841,1759590678701,-151.0,0.00020821,2]
[389144842,1759590678710,-151.0,0.00020821,2]
[389144843,1759590678720,-921.66,0.00020821,2]
[389144844,1759590678729,-500.0,0.00020821,2]
[389144845,1759590678738,-500.0,0.00020821,2]
[389144846,1759590678747,-151.0,0.00020821,2]
[389144847,1759590678757,-500.0,0.00020821,2]
[389144848,1759590678766,-151.0,0.00020821,2]
[389144849,1759590678775,-1196.39,0.00020821,2]
[389144850,1759590678784,-500.0,0.00020821,2]
[389144851,1759590678794,-500.0,0.00020821,2]
[389144852,1759590678803,-529.14,0.00020821,2]
[389144853,1759590678814,-534.32,0.00020821,2]
[389144854,1759590678823,-500.0,0.00020821,2]
[389144855,1759590678832,-1227.79,0.00020821,2]
[389144856,1759590678842,-500.0,0.00020821,2]
[389144857,1759590678851,-500.0,0.00020821,2]
[389144858,1759590678860,-1123.99,0.00020821,2]
[389144859,1759590678870,-513.6,0.00020821,2]
[389144860,1759590678879,-500.0,0.00020821,2]
[389144861,1759590678889,-151.0,0.00020821,2]
[389144862,1759590678899,-500.0,0.00020821,2]
[389144863,1759590678908,-151.0,0.00020821,2]
[389144864,1759590678917,-237.284514,0.00020821,2]
[389144865,1759590678926,-500.0,0.00020821,2]
[389144866,1759590678936,-871.48,0.00020821,2]
[389144867,1759590678945,-663.01,0.00020821,2]
[389144868,1759590678954,-500.0,0.00020821,2]
[389144869,1759590678963,-1603.11,0.00020821,2]
[389144870,1759590678973,-185.947866,0.00020821,2]